bitfinex/quotes_BTCUSD_20241020
["timestamp","ask_amount","ask_price","bid_price","bid_amount"]
[1729436443948,0.145594,68684.0,68683.0,0.002]
[1729436444179,0.2250327,68684.0,68683.0,0.002]
[1729436444404,0.2250327,68684.0,68683.0,0.01289223]
[1729436447299,0.0794387,68684.0,68683.0,0.01289223]
[1729436447510,0.0794387,68684.0,68683.0,0.002]
[1729436447714,0.2250327,68684.0,68683.0,0.01289292]
[1729436449442,0.37399185,68684.0,68683.0,0.01089292]
[1729436451161,0.37399185,68684.0,68680.0,0.002]
[1729436451384,0.1456,68681.0,68680.0,0.002]
[1729436451601,0.22162759,68681.0,68680.0,0.002]
[1729436451861,0.22388697,68681.0,68680.0,0.01289387]
[1729436455512,0.22388697,68681.0,68680.0,0.01289279]
[1729436463804,0.07828697,68681.0,68680.0,0.01289279]
[1729436464729,0.07828697,68681.0,68680.0,0.01289758]
[1729436465228,0.22388697,68681.0,68680.0,0.01289788]
[1729436468240,0.22388697,68681.0,68680.0,0.002]
[1729436468465,0.22388697,68681.0,68680.0,0.01289879]
[1729436470429,0.22471497,68681.0,68680.0,0.01289879]
[1729436472878,0.00308738,68681.0,68680.0,0.05647586]
[1729436473100,0.00308738,68681.0,68680.0,0.07826439]
[1729436473316,0.146428,68681.0,68680.0,0.01289879]
[1729436473522,0.00309069,68681.0,68680.0,0.01289879]
[1729436473740,0.14869069,68681.0,68680.0,0.01289879]
[1729436473991,0.00309069,68681.0,68680.0,0.01289879]
[1729436474619,0.00309069,68681.0,68680.0,0.002]
[1729436474847,0.00309069,68681.0,68680.0,0.10379629]
[1729436475066,0.00309069,68681.0,68680.0,0.18659612]
[1729436475286,0.00309069,68681.0,68680.0,0.33219812]
[1729436475493,0.000828,68681.0,68680.0,0.33219812]
[1729436476113,0.000828,68681.0,68680.0,0.18659612]
[1729436476591,0.000828,68681.0,68680.0,0.12123052]
[1729436476592,0.146428,68681.0,68680.0,0.12123052]
[1729436476828,0.14868248,68681.0,68680.0,0.16481481]
[1729436477044,0.14868248,68681.0,68680.0,0.12123052]
[1729436477271,0.14868248,68681.0,68680.0,0.16481671]
[1729436477495,0.00308248,68681.0,68680.0,0.16481671]
[1729436477936,0.00308248,68681.0,68680.0,0.12123052]
[1729436478372,0.00308248,68681.0,68680.0,0.16481933]
[1729436478587,0.00308248,68681.0,68680.0,0.12123052]
[1729436479247,0.14868248,68681.0,68680.0,0.0929]
[1729436479707,0.14868248,68681.0,68680.0,0.1648349]
[1729436483659,0.14868248,68681.0,68680.0,0.12123785]
[1729436484327,0.22257371,68681.0,68680.0,0.12123785]
[1729436484550,0.22257371,68681.0,68680.0,0.07398572]
[1729436486263,0.37153286,68681.0,68680.0,0.07198572]
[1729436486511,0.37153286,68681.0,68674.0,0.11059867]
[1729436486512,0.145613,68675.0,68674.0,0.001656]
[1729436486775,0.37106591,68675.0,68674.0,0.001656]
[1729436487006,0.46886591,68675.0,68674.0,0.03003865]
[1729436487237,0.57086591,68675.0,68674.0,0.03003865]
[1729436487684,0.59386591,68675.0,68674.0,0.03003865]
[1729436487911,0.67625081,68675.0,68674.0,0.03003865]
[1729436488998,0.67625081,68675.0,68658.0,0.04364787]
[1729436488999,0.023,68668.0,68656.0,0.002]
[1729436489212,0.145651,68657.0,68656.0,0.002]
[1729436489421,0.22233648,68657.0,68656.0,0.002]
[1729436489840,0.145655,68655.0,68654.0,0.001656]
[1729436490074,0.22234048,68655.0,68654.0,0.003656]
[1729436492086,0.07668548,68655.0,68654.0,0.003656]
[1729436492326,0.21901664,68655.0,68654.0,0.003656]
[1729436507950,0.21401664,68655.0,68654.0,0.003656]
[1729436516473,0.21401664,68655.0,68654.0,0.02110564]
[1729436516688,0.21401664,68655.0,68654.0,0.003656]
[1729436517319,0.21401664,68655.0,68654.0,0.02112704]
[1729436517751,0.21401664,68655.0,68654.0,0.003656]
[1729436517970,0.21401664,68655.0,68654.0,0.02112725]
[1729436519443,0.21484464,68655.0,68654.0,0.02112725]
[1729436520460,0.36380379,68655.0,68654.0,0.001656]
[1729436521727,0.36380379,68655.0,68654.0,0.01913416]
[1729436521968,0.36380379,68655.0,68654.0,0.001656]
[1729436523160,0.55844397,68655.0,68654.0,0.001656]
[1729436524015,0.46380379,68655.0,68654.0,0.001656]
[1729436528201,0.48680379,68655.0,68654.0,0.001656]
[1729436528429,0.65880379,68655.0,68654.0,0.001656]
[1729436528668,0.66180379,68655.0,68654.0,0.001656]
[1729436528884,0.66398923,68655.0,68654.0,0.001656]
[1729436529092,0.79197152,68655.0,68654.0,0.001656]
[1729436530126,0.66598923,68655.0,68654.0,0.001656]
[1729436530342,0.66398923,68655.0,68654.0,0.001656]
[1729436536757,0.49198923,68655.0,68654.0,0.001656]
[1729436537498,0.48898923,68655.0,68654.0,0.001656]
[1729436537731,0.49198923,68655.0,68654.0,0.001656]
[1729436537939,0.48898923,68655.0,68654.0,0.001656]
[1729436539731,0.60690795,68655.0,68654.0,0.001656]
[1729436539924,0.48898923,68655.0,68654.0,0.001656]
[1729436544220,0.49198923,68655.0,68654.0,0.001656]
[1729436545016,0.49398923,68655.0,68654.0,0.001656]
[1729436546103,0.51678838,68655.0,68654.0,0.001656]
[1729436546696,0.51478838,68655.0,68654.0,0.001656]
[1729436546909,0.51678838,68655.0,68654.0,0.001656]
[1729436547322,0.62816439,68655.0,68654.0,0.001656]
[1729436548616,0.80646439,68655.0,68654.0,0.001656]
[1729436548847,0.85003088,68655.0,68654.0,0.001656]
[1729436549073,0.87181412,68655.0,68654.0,0.001656]
[1729436549294,0.87179648,68655.0,68654.0,0.001656]
[1729436549756,0.91643579,68655.0,68654.0,0.001656]
[1729436550425,0.96075759,68655.0,68654.0,0.001656]
[1729436550690,0.89544044,68655.0,68654.0,0.001656]
[1729436550906,0.93799657,68655.0,68654.0,0.001656]
[1729436551170,0.93799657,68655.0,68654.0,1e-06]
[1729436553275,1.06861896,68655.0,68654.0,1e-06]
[1729436553483,0.93799657,68655.0,68654.0,1e-06]
[1729436553710,1.06861896,68655.0,68654.0,1e-06]
[1729436553922,0.93799657,68655.0,68654.0,1e-06]
[1729436554617,1.06848205,68655.0,68654.0,1e-06]
[1729436555287,1.21683441,68655.0,68654.0,1e-06]
[1729436557283,1.22883441,68655.0,68654.0,1e-06]
[1729436558609,1.24083441,68655.0,68654.0,1e-06]
[1729436559102,0.160683,68642.0,68641.0,1e-08]
[1729436559319,0.88534205,68642.0,68641.0,1e-08]
[1729436559521,0.92998136,68642.0,68641.0,1e-08]
[1729436559729,0.88653121,68642.0,68641.0,1e-08]
[1729436560195,0.92998136,68642.0,68641.0,1e-08]
[1729436560395,1.17436795,68642.0,68641.0,1e-08]
[1729436560606,1.23954317,68642.0,68641.0,1e-08]
[1729436560809,1.19490386,68642.0,68641.0,1e-08]
[1729436561240,1.09142896,68642.0,68641.0,1e-08]
[1729436562072,0.283694,68637.0,68636.0,8.97058557]
[1729436562273,0.50622043,68637.0,68636.0,8.97058557]
[1729436562927,0.5084068,68637.0,68636.0,8.97058557]
[1729436569158,0.5084068,68637.0,68636.0,8.97224157]
[1729436569370,0.63712289,68637.0,68636.0,8.97224157]
[1729436570436,0.63712289,68637.0,68636.0,8.95026287]
[1729436572637,0.5084068,68637.0,68636.0,8.95026287]
[1729436574094,0.53015607,68637.0,68636.0,8.95026287]
[1729436574336,0.74862229,68637.0,68636.0,8.95026287]
[1729436574551,0.53015607,68637.0,68636.0,8.95026287]
[1729436579299,0.53015607,68637.0,68636.0,8.92188562]
[1729436580457,0.53015607,68637.0,68636.0,8.99728562]
[1729436580698,0.53215607,68637.0,68636.0,8.99728562]
[1729436581651,0.53015607,68637.0,68636.0,8.99728562]
[1729436582165,0.5815445,68637.0,68636.0,8.92188562]
[1729436583061,0.5823725,68637.0,68636.0,8.80532962]
[1729436583274,0.5823725,68637.0,68636.0,8.77619062]
[1729436584109,0.5843725,68637.0,68636.0,8.77619062]
[1729436584318,0.53298407,68637.0,68636.0,8.68877362]
[1729436584753,0.53298407,68637.0,68636.0,8.54307862]
[1729436584969,0.53498407,68637.0,68636.0,8.54307862]
[1729436585209,0.75345029,68637.0,68636.0,8.46041755]
[1729436585440,1.14427996,68637.0,68636.0,8.13016837]
[1729436585664,1.14427996,68637.0,68636.0,8.07189037]
[1729436585873,1.1796178,68637.0,68636.0,8.04275137]
[1729436586087,1.1796178,68637.0,68636.0,7.95494956]
[1729436586901,1.1796178,68637.0,68636.0,7.92581056]
[1729436587211,1.39323205,68637.0,68636.0,7.72727241]
[1729436587422,1.4373873,68637.0,68636.0,7.6891893]
[1729436587644,1.54485215,68637.0,68636.0,7.5626826]
[1729436587898,1.54485215,68637.0,68636.0,7.5044046]
[1729436588132,1.54485215,68637.0,68636.0,7.35642679]
[1729436588133,1.54285215,68637.0,68636.0,7.35642679]
[1729436588373,1.47986503,68637.0,68636.0,7.21056383]
[1729436588597,1.47986503,68637.0,68636.0,7.18142483]
[1729436588809,1.47986503,68637.0,68636.0,7.12265118]
[1729436589027,1.39238503,68637.0,68636.0,7.03523418]
[1729436589495,1.39038503,68637.0,68636.0,7.03523418]
[1729436589736,1.1504426,68637.0,68636.0,6.86050063]
[1729436590076,1.1594426,68637.0,68636.0,6.86050063]
[1729436590285,1.1594426,68637.0,68636.0,6.85920063]
[1729436590724,1.1684426,68637.0,68636.0,6.77178363]
[1729436590929,1.31740175,68637.0,68636.0,6.74264463]
[1729436591139,1.31740175,68637.0,68636.0,6.71350563]
[1729436592463,1.40658587,68637.0,68636.0,6.62608863]
[1729436592668,1.40658587,68637.0,68636.0,6.56781063]
[1729436592867,1.36427311,68637.0,68636.0,6.48039363]
[1729436593333,1.44849732,68637.0,68636.0,6.48039363]
[1729436593512,1.36173849,68637.0,68636.0,6.48039363]
[1729436593710,1.36173849,68637.0,68636.0,6.45125463]
[1729436593905,1.36173849,68637.0,68636.0,6.39297663]
[1729436594515,1.47005036,68637.0,68636.0,6.33469863]
[1729436595443,1.27933204,68637.0,68636.0,6.18900363]
[1729436595647,1.38787921,68637.0,68636.0,6.15986463]
[1729436596111,1.54117921,68637.0,68636.0,6.10158663]
[1729436596534,1.43263204,68637.0,68636.0,6.04330863]
[1729436596765,1.43263204,68637.0,68636.0,5.98503063]
[1729436596983,1.43263204,68637.0,68636.0,5.92675263]
[1729436597229,1.43263204,68637.0,68636.0,5.89761363]
[1729436597663,1.43263204,68637.0,68636.0,5.77921663]
[1729436597892,1.43263204,68637.0,68636.0,5.72093863]
[1729436598952,1.52011204,68637.0,68636.0,5.66266063]
[1729436599208,1.52011204,68637.0,68636.0,5.60438263]
[1729436599354,1.52011204,68637.0,68636.0,5.53354363]
[1729436599565,1.56475858,68637.0,68636.0,5.51805063]
[1729436599786,1.56475858,68637.0,68636.0,5.45977263]
[1729436600166,1.56475858,68637.0,68636.0,5.34304563]
[1729436600485,1.55575858,68637.0,68636.0,5.33200585]
[1729436600680,1.55575858,68637.0,68636.0,5.30286685]
[1729436600945,1.55975858,68637.0,68636.0,5.24458885]
[1729436601173,1.55975858,68637.0,68636.0,5.18631085]
[1729436601387,1.57275858,68637.0,68636.0,4.90489368]
[1729436601600,1.7816472,68637.0,68636.0,4.06115458]
[1729436601812,1.78168821,68637.0,68636.0,3.70240785]
[1729436602039,1.78168905,68637.0,68636.0,3.68136702]
[1729436602221,1.65135858,68637.0,68636.0,3.66721565]
[1729436602647,1.65135858,68637.0,68636.0,3.63807665]
[1729436603072,1.63835858,68637.0,68636.0,3.52152065]
[1729436603217,1.62501412,68637.0,68636.0,3.52152065]
[1729436603431,1.65301412,68637.0,68636.0,3.49275263]
[1729436603631,1.63901412,68637.0,68636.0,3.4213378]
[1729436603832,1.62501412,68637.0,68636.0,3.27735429]
[1729436604262,1.65301412,68637.0,68636.0,3.25935429]
[1729436604465,1.65301412,68637.0,68636.0,3.25135429]
[1729436604701,1.65301412,68637.0,68636.0,3.16393729]
[1729436604917,1.60836758,68637.0,68636.0,3.10565929]
[1729436605087,1.73866798,68637.0,68636.0,3.10565929]
[1729436605297,1.51110883,68637.0,68636.0,3.10565929]
[1729436605435,1.37137209,68637.0,68636.0,3.10565929]
[1729436605653,1.24107169,68637.0,68636.0,3.10565929]
[1729436606144,1.24107169,68637.0,68636.0,2.63919376]
[1729436606288,1.3082219,68637.0,68636.0,2.63522533]
[1729436606495,1.45718105,68637.0,68636.0,2.63522533]
[1729436607619,1.50182759,68637.0,68636.0,2.63522533]
[1729436607834,1.50182759,68637.0,68636.0,2.56486533]
[1729436608243,1.50182759,68637.0,68636.0,2.55445515]
[1729436608908,1.45718105,68637.0,68636.0,2.55445515]
[1729436610273,1.45718105,68637.0,68636.0,2.52304048]
[1729436611332,1.45127258,68637.0,68636.0,2.52304048]
[1729436611869,1.30231343,68637.0,68636.0,2.52304048]
[1729436614154,1.30231343,68637.0,68636.0,2.46476248]
[1729436614511,1.30231343,68637.0,68636.0,2.37734548]
[1729436614762,1.30231343,68637.0,68636.0,2.31906748]
[1729436614960,1.30231343,68637.0,68636.0,2.26078948]
[1729436615174,1.45127258,68637.0,68636.0,2.26078948]
[1729436617724,1.45127258,68637.0,68636.0,2.23165048]
[1729436618163,1.41593474,68637.0,68636.0,2.17337248]
[1729436619525,1.45127258,68637.0,68636.0,2.17337248]
[1729436619754,1.45014226,68637.0,68636.0,2.14423348]
[1729436621133,1.30118311,68637.0,68636.0,2.14423348]
[1729436621375,1.10354637,68637.0,68636.0,2.21943348]
[1729436621586,1.10354637,68637.0,68636.0,2.31583348]
[1729436622426,1.10354637,68637.0,68636.0,2.21943348]
[1729436622663,1.25250552,68637.0,68636.0,2.21943348]
[1729436622891,1.25250552,68637.0,68636.0,2.20605857]
[1729436624650,1.38282975,68637.0,68636.0,2.20605857]
[1729436624844,1.25250552,68637.0,68636.0,2.20605857]
[1729436625463,1.25250552,68637.0,68636.0,2.00826787]
[1729436627033,1.38291549,68637.0,68636.0,2.00826787]
[1729436627266,1.38291549,68637.0,68636.0,1.91821963]
[1729436627267,1.38291551,68637.0,68636.0,1.91821963]
[1729436627492,1.29838635,68637.0,68636.0,1.83080263]
[1729436627729,1.42879634,68637.0,68636.0,1.80166363]
[1729436627965,1.47344288,68637.0,68636.0,1.77252463]
[1729436628184,1.47344288,68637.0,68636.0,1.68510763]
[1729436628185,1.34303289,68637.0,68636.0,1.68510763]
[1729436628821,1.29838635,68637.0,68636.0,1.59769063]
[1729436632871,1.29838635,68637.0,68636.0,1.59765063]
[1729436633114,1.29838635,68637.0,68636.0,1.59020718]
[1729436633350,1.26304851,68637.0,68636.0,1.59020718]
[1729436634020,1.29838635,68637.0,68636.0,1.59020718]
[1729436634896,1.29838635,68637.0,68636.0,1.57673837]
[1729436635574,1.3009211,68637.0,68636.0,1.57673837]
[1729436636216,1.3009211,68637.0,68636.0,1.55277837]
[1729436636430,1.4544211,68637.0,68636.0,1.55277837]
[1729436636883,1.4544211,68637.0,68636.0,1.52118837]
[1729436637094,1.4544211,68637.0,68636.0,1.48979837]
[1729436638823,1.60112846,68637.0,68636.0,1.4763474]
[1729436639766,1.4544211,68637.0,68636.0,0.94190794]
[1729436639981,1.49653289,68637.0,68636.0,0.94190794]
[1729436640855,1.49653289,68637.0,68636.0,0.81844094]
[1729436641067,1.49653289,68637.0,68636.0,0.76016294]
[1729436641504,1.78803289,68637.0,68636.0,0.76016294]
[1729436641712,1.78803289,68637.0,68636.0,0.67274594]
[1729436641932,1.78803289,68637.0,68636.0,0.64360694]
[1729436642138,1.78803289,68637.0,68636.0,0.61446794]
[1729436642568,1.78803289,68637.0,68636.0,0.51446794]
[1729436642802,1.78803289,68637.0,68636.0,0.26059851]
[1729436643026,1.78803289,68637.0,68636.0,0.23145951]
[1729436643277,1.78803289,68637.0,68636.0,0.22227815]
[1729436643719,1.78803289,68637.0,68636.0,0.18828815]
[1729436643927,1.78803289,68637.0,68636.0,0.13001015]
[1729436644358,1.78803289,68637.0,68636.0,0.05173215]
[1729436644612,1.78803289,68637.0,68636.0,0.02259315]
[1729436644831,0.015,68631.0,68630.0,1.0]
[1729436645058,0.59796072,68631.0,68630.0,1.0]
[1729436645279,0.86820161,68631.0,68630.0,1.0]
[1729436645715,0.91284814,68631.0,68630.0,1.0]
[1729436646185,0.92384814,68631.0,68630.0,1.0]
[1729436646422,1.07734814,68631.0,68630.0,1.0]
[1729436647088,1.07734814,68631.0,68630.0,0.96869]
[1729436647771,1.08834814,68631.0,68630.0,0.96869]
[1729436648481,1.33184814,68631.0,68630.0,0.96869]
[1729436648746,1.33184814,68631.0,68628.0,1.51537951]
[1729436648747,0.52469,68629.0,68628.0,1.51537951]
[1729436648965,0.78896155,68629.0,68628.0,1.37161667]
[1729436649197,1.01700878,68629.0,68628.0,1.37161667]
[1729436649426,0.87018022,68629.0,68628.0,1.37161667]
[1729436649633,1.01913937,68629.0,68628.0,1.37161667]
[1729436650775,1.01913937,68629.0,68628.0,1.12926184]
[1729436651053,0.82429939,68629.0,68628.0,1.12926184]
[1729436651734,0.83829939,68629.0,68628.0,1.12926184]
[1729436652370,0.85229939,68629.0,68628.0,1.12926184]
[1729436652590,0.87370623,68629.0,68628.0,1.12926184]
[1729436652790,0.97420918,68629.0,68628.0,1.12926184]
[1729436653038,1.13716833,68629.0,68628.0,1.12926184]
[1729436654313,1.38066833,68629.0,68628.0,1.12926184]
[1729436654553,1.38066833,68629.0,68628.0,1.10926184]
[1729436654985,1.42531486,68629.0,68628.0,0.93034984]
[1729436655237,1.42531486,68629.0,68628.0,0.90120684]
[1729436655679,1.42531486,68629.0,68628.0,0.84727542]
[1729436655897,1.42531486,68629.0,68628.0,0.81813242]
[1729436656321,1.42531486,68629.0,68628.0,0.65834342]
[1729436656533,1.47119569,68629.0,68628.0,0.65834342]
[1729436656748,1.45719569,68629.0,68628.0,0.57091442]
[1729436656964,1.45719569,68629.0,68628.0,0.53487142]
[1729436657192,1.47119569,68629.0,68628.0,0.50572842]
[1729436657667,1.47119569,68629.0,68628.0,0.45218592]
[1729436657866,1.47119569,68629.0,68628.0,0.45108592]
[1729436658285,1.45719569,68629.0,68628.0,0.45108592]
[1729436658665,1.47119569,68629.0,68628.0,0.45108592]
[1729436659246,1.47119569,68629.0,68628.0,0.28296392]
[1729436659448,1.47119569,68629.0,68628.0,0.25382092]
[1729436659651,1.47119569,68629.0,68628.0,0.14639192]
[1729436659866,1.47119569,68629.0,68628.0,0.07379409]
[1729436660301,0.501695,68627.0,68626.0,0.001648]
[1729436660513,1.14842666,68627.0,68626.0,0.001648]
[1729436660712,1.35869691,68627.0,68626.0,0.001648]
[1729436661454,0.028,68606.0,68580.0,0.005]
[1729436661666,0.62173381,68606.0,68580.0,0.005]
[1729436661894,0.66516184,68606.0,68605.0,0.001648]
[1729436662066,0.81412099,68606.0,68605.0,0.001648]
[1729436662485,0.77069296,68606.0,68605.0,0.001648]
[1729436662685,0.77169296,68606.0,68605.0,0.001648]
[1729436663295,0.8161124,68606.0,68605.0,0.001648]
[1729436663929,0.003,68592.0,68591.0,0.21594222]
[1729436664176,0.15195915,68592.0,68591.0,0.21594222]
[1729436664377,0.003,68591.0,68586.0,0.0795]
[1729436664722,0.00218771,68589.0,68588.0,0.1037]
[1729436664931,0.22862671,68589.0,68588.0,0.1832]
[1729436666206,0.22196792,68589.0,68588.0,0.1832]
[1729436666673,0.22196792,68589.0,68588.0,0.1892]
[1729436667953,0.22196792,68589.0,68588.0,0.190856]
[1729436674488,0.22415562,68589.0,68588.0,0.190856]
[1729436678375,0.22196792,68589.0,68588.0,0.190856]
[1729436680245,0.22279592,68589.0,68588.0,0.190856]
[1729436689408,0.32279592,68589.0,68588.0,0.190856]
[1729436689649,0.32579592,68589.0,68588.0,0.190856]
[1729436689900,0.32579592,68589.0,68588.0,0.087156]
[1729436692423,0.49459092,68589.0,68588.0,0.007656]
[1729436693371,0.53808084,68589.0,68588.0,0.007656]
[1729436693591,0.51544989,68589.0,68588.0,0.007656]
[1729436693808,0.51035485,68589.0,68588.0,0.007656]
[1729436694511,0.69963977,68589.0,68588.0,0.007656]
[1729436694744,0.72138677,68589.0,68588.0,0.007656]
[1729436694973,0.65614985,68589.0,68588.0,0.007656]
[1729436695426,0.72136051,68589.0,68588.0,0.007656]
[1729436695711,0.65614985,68589.0,68588.0,0.007656]
[1729436695941,1.01849972,68589.0,68588.0,0.007656]
[1729436696180,1.07867356,68589.0,68588.0,0.007656]
[1729436696397,1.03575972,68589.0,68588.0,0.007656]
[1729436697095,1.14129552,68589.0,68588.0,0.007656]
[1729436697606,1.22127989,68589.0,68588.0,0.007656]
[1729436698757,1.22127989,68589.0,68588.0,0.001656]
[1729436699003,1.22127989,68589.0,68567.0,0.00165]
[1729436699004,0.27184,68568.0,68567.0,0.00165]
[1729436699237,0.48830093,68568.0,68567.0,0.00165]
[1729436702936,0.49030093,68568.0,68567.0,0.00165]
[1729436703168,0.51118878,68568.0,68567.0,0.00165]
[1729436704562,0.50918878,68568.0,68567.0,0.00165]
[1729436704816,0.36334878,68568.0,68567.0,0.00165]
[1729436705276,0.59741837,68568.0,68567.0,0.00165]
[1729436705722,0.51137782,68568.0,68567.0,0.00165]
[1729436707781,0.51337782,68568.0,68567.0,0.00165]
[1729436708754,0.65777782,68568.0,68567.0,0.00165]
[1729436709210,0.65777782,68568.0,68559.0,0.00165]
[1729436709211,0.258853,68562.0,68559.0,0.00165]
[1729436709422,0.4655395,68562.0,68559.0,0.00165]
[1729436709632,0.4755395,68562.0,68559.0,0.00165]
[1729436710097,0.4655395,68562.0,68559.0,0.00165]
[1729436712725,0.4755395,68562.0,68559.0,0.00165]
[1729436712946,0.4655395,68562.0,68559.0,0.00165]
[1729436713601,0.4755395,68562.0,68559.0,0.00165]
[1729436714028,0.4655395,68562.0,68559.0,0.00165]
[1729436714444,0.4655395,68562.0,68559.0,0.13065]
[1729436715338,0.4655395,68562.0,68561.0,0.08425]
[1729436715576,0.3166865,68562.0,68561.0,0.08425]
[1729436715835,0.2166865,68562.0,68561.0,0.08425]
[1729436717570,0.3166865,68562.0,68561.0,0.08425]
[1729436717782,0.3166865,68562.0,68561.0,0.21325]
[1729436719948,0.3166865,68562.0,68561.0,0.00165]
[1729436720208,0.4625395,68562.0,68561.0,0.00165]
[1729436720437,0.3166865,68562.0,68561.0,0.00165]
[1729436721326,0.3166865,68562.0,68561.0,0.08365]
[1729436723272,0.3166865,68562.0,68561.0,0.00165]
[1729436723478,0.34835515,68562.0,68561.0,0.00165]
[1729436723898,0.3166865,68562.0,68561.0,0.00165]
[1729436725152,0.4625395,68562.0,68561.0,0.00165]
[1729436725363,0.3166865,68562.0,68561.0,0.00165]
[1729436726629,0.4625395,68562.0,68561.0,0.00165]
[1729436726838,0.48537021,68562.0,68561.0,0.00165]
[1729436728882,0.50630225,68562.0,68561.0,0.00165]
[1729436731891,0.48537021,68562.0,68561.0,0.00165]
[1729436732584,0.56354143,68562.0,68561.0,0.00165]
[1729436732814,0.48837021,68562.0,68561.0,0.00165]
[1729436733492,0.33951721,68562.0,68561.0,0.00165]
[1729436733721,0.3166865,68562.0,68561.0,0.00165]
[1729436734161,0.3166865,68562.0,68561.0,0.08365]
[1729436737358,0.3166865,68562.0,68561.0,0.00165]
[1729436738489,0.4625395,68562.0,68561.0,0.00165]
[1729436738906,0.3166865,68562.0,68561.0,0.00165]
[1729436739125,0.4625395,68562.0,68561.0,0.00165]
[1729436739580,0.3166865,68562.0,68561.0,0.00165]
[1729436746736,0.1,68561.0,68553.0,0.0558]
[1729436746953,0.14895915,68560.0,68553.0,0.0558]
[1729436747219,0.1,68559.0,68553.0,0.0558]
[1729436747500,0.1,68557.0,68553.0,0.0558]
[1729436747699,0.14895915,68556.0,68553.0,0.0558]
[1729436747923,0.16256527,68556.0,68553.0,0.0558]
[1729436748834,0.00218851,68554.0,68553.0,0.0558]
[1729436749049,0.22024841,68554.0,68553.0,0.0558]
[1729436749287,0.23385453,68554.0,68553.0,0.0558]
[1729436751453,0.23386047,68554.0,68553.0,0.0558]
[1729436751874,0.23386026,68554.0,68553.0,0.0558]
[1729436752307,0.23386026,68554.0,68553.0,0.0528]
[1729436753694,0.23386026,68554.0,68553.0,0.053628]
[1729436755219,0.22024841,68554.0,68553.0,0.053628]
[1729436755460,0.23386339,68554.0,68553.0,0.053628]
[1729436756783,0.23167488,68554.0,68553.0,0.000828]
[1729436760924,0.23167488,68554.0,68553.0,0.01176872]
[1729436761193,0.23167494,68554.0,68553.0,0.000828]
[1729436761892,0.23167565,68554.0,68553.0,0.000828]
[1729436765839,0.23167309,68554.0,68553.0,0.000828]
[1729436766745,0.23332909,68554.0,68553.0,0.000828]
[1729436769572,0.23333044,68554.0,68553.0,0.000828]
[1729436769789,0.36473044,68554.0,68553.0,0.000828]
[1729436770449,0.23333044,68554.0,68553.0,0.000828]
[1729436771552,0.33333044,68554.0,68553.0,0.000828]
[1729436771760,0.35462886,68554.0,68553.0,0.000828]
[1729436772459,0.43097953,68554.0,68553.0,0.000828]
[1729436772749,0.70824953,68554.0,68553.0,0.000828]
[1729436773014,0.79464953,68554.0,68553.0,0.000828]
[1729436773287,0.85994503,68554.0,68553.0,0.000828]
[1729436774011,0.7946451,68554.0,68553.0,0.000828]
[1729436774453,0.8176451,68554.0,68553.0,0.000828]
[1729436774664,0.90469664,68554.0,68553.0,0.000828]
[1729436774874,0.97096241,68554.0,68553.0,0.000828]
[1729436775316,1.0668229,68554.0,68553.0,0.000828]
[1729436775749,0.95805389,68554.0,68553.0,0.000828]
[1729436776219,0.95805389,68554.0,68536.0,0.00165]
[1729436776220,0.1,68541.0,68536.0,0.00165]
[1729436776467,0.1,68539.0,68536.0,0.00165]
[1729436776704,0.1,68537.0,68536.0,0.00165]
[1729436776929,0.32833177,68537.0,68536.0,0.00165]
[1729436778728,0.33052116,68537.0,68536.0,0.00165]
[1729436779580,0.33047438,68537.0,68536.0,0.00165]
[1729436780017,0.31691105,68537.0,68536.0,0.00165]
[1729436781883,0.33047073,68537.0,68536.0,0.00165]
[1729436783603,0.33046765,68537.0,68536.0,0.00165]
[1729436784471,0.53696765,68537.0,68536.0,0.00165]
[1729436784692,0.68287365,68537.0,68536.0,0.00165]
[1729436785334,0.70455848,68537.0,68536.0,0.00165]
[1729436786244,0.70955848,68537.0,68536.0,0.00165]
[1729436787339,0.70955563,68537.0,68536.0,0.00165]
[1729436787780,0.80820175,68537.0,68536.0,0.00165]
[1729436787996,0.70955563,68537.0,68536.0,0.00165]
[1729436789107,0.71155563,68537.0,68536.0,0.00165]
[1729436789340,0.70955563,68537.0,68536.0,0.00165]
[1729436790015,0.71155563,68537.0,68536.0,0.00165]
[1729436790909,0.73413652,68537.0,68536.0,0.00165]
[1729436791146,0.71155563,68537.0,68536.0,0.00165]
[1729436791796,0.86051478,68537.0,68536.0,0.00165]
[1729436792012,0.71155563,68537.0,68536.0,0.00165]
[1729436792247,0.245925,68528.0,68521.0,0.0178659]
[1729436792480,0.1,68526.0,68521.0,0.0178659]
[1729436792690,0.1,68524.0,68521.0,0.0178659]
[1729436792929,0.1,68522.0,68521.0,0.0178659]
[1729436793140,0.32887424,68522.0,68521.0,0.0178659]
[1729436794021,0.35171756,68522.0,68521.0,0.0178659]
[1729436794236,0.35390747,68522.0,68521.0,0.0178659]
[1729436795103,0.35389653,68522.0,68521.0,0.0178659]
[1729436795988,0.34035417,68522.0,68521.0,0.0178659]
[1729436796642,0.34035417,68522.0,68521.0,0.2266659]
[1729436796862,0.0685517,68522.0,68521.0,0.3776059]
[1729436797092,0.0685517,68522.0,68521.0,0.2316659]
[1729436797334,0.21751085,68522.0,68521.0,0.1021659]
[1729436797570,0.21751085,68522.0,68521.0,0.0228659]
[1729436799063,0.21532094,68522.0,68521.0,0.0228659]
[1729436799853,0.21751069,68522.0,68521.0,0.0228659]
[1729436800909,0.21751069,68522.0,68521.0,0.0178659]
[1729436801045,0.33107097,68522.0,68521.0,0.0178659]
[1729436804858,0.32888122,68522.0,68521.0,0.0178659]
[1729436805553,0.33107088,68522.0,68521.0,0.0186939]
[1729436812231,0.32888122,68522.0,68521.0,0.2172939]
[1729436812452,0.32888122,68522.0,68521.0,0.3682339]
[1729436812453,0.07992207,68522.0,68521.0,0.3682339]
[1729436812707,0.06636179,68522.0,68521.0,0.3682339]
[1729436812916,0.02284334,68525.0,68522.0,0.150938]
[1729436812917,0.06691922,68523.0,68522.0,0.150938]
[1729436813156,0.01359014,68531.0,68528.0,0.145924]
[1729436813395,0.14895915,68530.0,68527.0,0.150927]
[1729436813615,0.14895915,68530.0,68528.0,0.145924]
[1729436813844,0.14895915,68530.0,68526.0,0.005]
[1729436814060,0.1,68529.0,68527.0,0.005]
[1729436814306,0.02668504,68537.0,68527.0,0.005]
[1729436814307,0.14895915,68528.0,68527.0,0.005]
[1729436814535,0.21574124,68528.0,68527.0,0.150927]
[1729436814991,0.21574124,68528.0,68527.0,0.005]
[1729436828361,0.06678209,68528.0,68527.0,0.36018261]
[1729436828606,0.06678209,68528.0,68527.0,0.358727]
[1729436829024,0.00218928,68528.0,68527.0,0.358727]
[1729436829266,0.06562399,68535.0,68532.0,0.005]
[1729436829481,0.21846622,68533.0,68532.0,0.005]